[Event "Live Chess"]
[Site "Chess.com"]
[Date "2023.05.21"]
[Round "-"]
[White "Hacker_2009"]
[Black "Singapourfeuj"]
[Result "0-1"]
[WhiteElo "1908"]
[BlackElo "2194"]
[TimeControl "300"]
[EndTime "0:46:31 PDT"]
[Termination "Singapourfeuj won by resignation"]

1. d4 {[%clk 0:04:58.2]} 1... e6 {[%clk 0:04:59.2]} 2. Nf3 {[%clk 0:04:55.4]}
2... Nf6 {[%clk 0:04:58.1]} 3. c4 {[%clk 0:04:53.1]} 3... Be7 {[%clk 0:04:57.4]}
4. Nc3 {[%clk 0:04:51.1]} 4... d5 {[%clk 0:04:56.5]} 5. e3 {[%clk 0:04:49.2]}
5... O-O {[%clk 0:04:54.4]} 6. b3 {[%clk 0:04:47.3]} 6... c5 {[%clk 0:04:53.3]}
7. Bb2 {[%clk 0:04:45]} 7... cxd4 {[%clk 0:04:52.4]} 8. Nxd4 {[%clk 0:04:42.6]}
8... Nc6 {[%clk 0:04:51.3]} 9. cxd5 {[%clk 0:04:39.5]} 9... Nxd5 {[%clk
0:04:49.9]} 10. Nxd5 {[%clk 0:04:38.4]} 10... Qxd5 {[%clk 0:04:48.1]} 11. Nxc6
{[%clk 0:04:37.4]} 11... Qxc6 {[%clk 0:04:45.3]} 12. Rc1 {[%clk 0:04:35.7]}
12... Bb4+ {[%clk 0:04:44.1]} 13. Ke2 {[%clk 0:04:30.6]} 13... Qb5+ {[%clk
0:04:42.7]} 14. Kf3 {[%clk 0:04:29.5]} 14... Qh5+ {[%clk 0:04:38.4]} 15. Kg3
{[%clk 0:04:27.7]} 15... Qg6+ {[%clk 0:04:34.9]} 16. Qg4 {[%clk 0:04:24.2]}
16... Qxg4+ {[%clk 0:04:31.3]} 17. Kxg4 {[%clk 0:04:23.4]} 17... e5+ {[%clk
0:04:29.5]} 18. Kf3 {[%clk 0:04:22.9]} 18... f5 {[%clk 0:04:27.9]} 19. e4 {[%clk
0:04:21]} 19... fxe4+ {[%clk 0:04:23.3]} 20. Kxe4 {[%clk 0:04:19.9]} 20... Bf5+
{[%clk 0:04:22.3]} 21. Kxe5 {[%clk 0:04:16]} 21... Rae8+ {[%clk 0:04:21.2]} 22.
Kd4 {[%clk 0:04:14.7]} 22... a6 {[%clk 0:04:17.8]} 23. Bc4+ {[%clk 0:04:12.8]}
23... Kh8 {[%clk 0:04:16.8]} 24. a3 {[%clk 0:04:10.9]} 24... Rd8+ {[%clk
0:04:15.5]} 25. Ke5 {[%clk 0:04:08.7]} 25... Bd6+ {[%clk 0:04:12.5]} 26. Kd4
{[%clk 0:04:01.4]} 26... Bf4+ {[%clk 0:04:11.1]} 27. Kc3 {[%clk 0:04:00.3]}
27... b5 {[%clk 0:04:08.5]} 28. Be2 {[%clk 0:03:53.9]} 28... Be5+ {[%clk
0:04:07.4]} 0-1

[Event "Live Chess"]
[Site "Chess.com"]
[Date "2023.05.21"]
[Round "-"]
[White "Denz14"]
[Black "blunderabit"]
[Result "0-1"]
[WhiteElo "1022"]
[BlackElo "1814"]
[TimeControl "300"]
[EndTime "0:46:33 PDT"]
[Termination "blunderabit won by resignation"]

1. e4 {[%clk 0:04:57.5]} 1... c5 {[%clk 0:04:57.6]} 2. Nf3 {[%clk 0:04:51.3]}
2... d6 {[%clk 0:04:56.1]} 3. c3 {[%clk 0:04:49.4]} 3... Nf6 {[%clk 0:04:52.9]}
4. d3 {[%clk 0:04:47.4]} 4... g6 {[%clk 0:04:48.3]} 5. Bg5 {[%clk 0:04:42.5]}
5... Bg7 {[%clk 0:04:47.7]} 6. Qd2 {[%clk 0:04:40.8]} 6... h6 {[%clk 0:04:44.4]}
7. Bh4 {[%clk 0:04:35]} 7... Nc6 {[%clk 0:04:40.5]} 8. Be2 {[%clk 0:04:24.9]}
8... O-O {[%clk 0:04:38.6]} 9. e5 {[%clk 0:04:15.1]} 9... dxe5 {[%clk
0:04:35.6]} 10. Bxf6 {[%clk 0:04:12]} 10... exf6 {[%clk 0:04:32.3]} 11. h4
{[%clk 0:04:07.4]} 11... f5 {[%clk 0:04:23.9]} 12. g4 {[%clk 0:04:02.9]} 12...
fxg4 {[%clk 0:04:06.1]} 13. Nh2 {[%clk 0:04:00.7]} 13... f5 {[%clk 0:03:52.5]}
14. Na3 {[%clk 0:03:53.9]} 14... Qxh4 {[%clk 0:03:44.3]} 15. O-O-O {[%clk
0:03:48.1]} 15... Qg5 {[%clk 0:03:37.4]} 16. Qxg5 {[%clk 0:03:43.9]} 16... hxg5
{[%clk 0:03:35.5]} 17. Nf1 {[%clk 0:03:35.9]} 17... Be6 {[%clk 0:03:31.5]} 18.
Ng3 {[%clk 0:03:30.6]} 18... Bxa2 {[%clk 0:03:26]} 19. c4 {[%clk 0:03:15.6]}
19... Bb3 {[%clk 0:03:22.9]} 20. Rdg1 {[%clk 0:03:07.8]} 20... Nd4 {[%clk
0:03:21.2]} 21. Bd1 {[%clk 0:02:58.1]} 21... Bxd1 {[%clk 0:03:17.5]} 22. Kxd1
{[%clk 0:02:53.8]} 22... Rad8 {[%clk 0:03:14.5]} 23. Nc2 {[%clk 0:02:39.7]}
23... e4 {[%clk 0:03:11.5]} 24. Nxd4 {[%clk 0:02:38.1]} 24... Rxd4 {[%clk
0:03:09.6]} 25. Ne2 {[%clk 0:02:33.3]} 25... Rxd3+ {[%clk 0:03:07.4]} 26. Kc2
{[%clk 0:02:31.7]} 26... Rfd8 {[%clk 0:03:05.1]} 27. Rd1 {[%clk 0:02:29.6]}
27... Rxd1 {[%clk 0:03:03.5]} 28. Rxd1 {[%clk 0:02:28.1]} 28... Rxd1 {[%clk
0:03:02.2]} 29. Kxd1 {[%clk 0:02:26.9]} 29... Bxb2 {[%clk 0:03:01.3]} 30. Kc2
{[%clk 0:02:24.4]} 30... Bd4 {[%clk 0:02:59.9]} 31. Nxd4 {[%clk 0:02:22.9]}
31... cxd4 {[%clk 0:02:58.7]} 32. c5 {[%clk 0:02:21.7]} 32... e3 {[%clk
0:02:53.5]} 33. fxe3 {[%clk 0:02:19.8]} 33... g3 {[%clk 0:02:52.1]} 0-1

[Event "Live Chess"]
[Site "Chess.com"]
[Date "2023.05.21"]
[Round "-"]
[White "booktrunk"]
[Black "profpirate4"]
[Result "1-0"]
[WhiteElo "1283"]
[BlackElo "1259"]
[TimeControl "300"]
[EndTime "0:46:40 PDT"]
[Termination "booktrunk won by resignation"]

1. d4 {[%clk 0:04:59.3]} 1... f5 {[%clk 0:04:59.1]} 2. g3 {[%clk 0:04:57]} 2...
e6 {[%clk 0:04:58.2]} 3. Bg2 {[%clk 0:04:55.7]} 3... Nf6 {[%clk 0:04:57.6]} 4.
Bg5 {[%clk 0:04:53.4]} 4... Be7 {[%clk 0:04:56.4]} 5. h4 {[%clk 0:04:51.5]} 5...
h6 {[%clk 0:04:55.2]} 6. Bxf6 {[%clk 0:04:49.8]} 6... Bxf6 {[%clk 0:04:54.1]} 7.
c3 {[%clk 0:04:48.9]} 7... d5 {[%clk 0:04:52.6]} 8. Nd2 {[%clk 0:04:44.6]} 8...
O-O {[%clk 0:04:44.6]} 9. Ndf3 {[%clk 0:04:40.7]} 9... Nc6 {[%clk 0:04:42.3]}
10. e3 {[%clk 0:04:39.4]} 10... a5 {[%clk 0:04:32.9]} 11. Ne2 {[%clk 0:04:38.3]}
11... a4 {[%clk 0:04:31.5]} 12. Nf4 {[%clk 0:04:37.1]} 12... Qe8 {[%clk
0:04:24.3]} 13. h5 {[%clk 0:04:33.2]} 13... a3 {[%clk 0:04:16.2]} 14. b3 {[%clk
0:04:29.7]} 14... b5 {[%clk 0:04:10]} 15. Qd3 {[%clk 0:04:28]} 15... Nd8 {[%clk
0:04:03.9]} 16. Bf1 {[%clk 0:04:24.6]} 16... Bd7 {[%clk 0:03:59.6]} 17. Be2
{[%clk 0:04:18.8]} 17... Nf7 {[%clk 0:03:58.2]} 18. Nh4 {[%clk 0:04:16.8]} 18...
Ng5 {[%clk 0:03:50.5]} 19. Nfg6 {[%clk 0:04:15]} 19... Rf7 {[%clk 0:03:45.6]}
20. f4 {[%clk 0:04:13.6]} 20... Ne4 {[%clk 0:03:35.6]} 21. Rg1 {[%clk 0:04:10]}
21... Qd8 {[%clk 0:03:14.2]} 22. Nf3 {[%clk 0:04:08.9]} 22... Nxg3 {[%clk
0:02:57.4]} 23. Rxg3 {[%clk 0:04:07.2]} 23... Bh4 {[%clk 0:02:56]} 24. Nfxh4
{[%clk 0:04:04.9]} 1-0

[Event "Live Chess"]
[Site "Chess.com"]
[Date "2023.05.21"]
[Round "-"]
[White "SupremeTactician"]
[Black "BJAW87"]
[Result "1-0"]
[WhiteElo "2283"]
[BlackElo "1447"]
[TimeControl "300"]
[EndTime "0:47:13 PDT"]
[Termination "SupremeTactician won by resignation"]

1. e4 {[%clk 0:04:59]} 1... c6 {[%clk 0:04:57.6]} 2. d4 {[%clk 0:04:57]} 2... d5
{[%clk 0:04:56.8]} 3. Nc3 {[%clk 0:04:56.9]} 3... dxe4 {[%clk 0:04:55.5]} 4.
Nxe4 {[%clk 0:04:56.8]} 4... Nf6 {[%clk 0:04:54.6]} 5. Nxf6+ {[%clk 0:04:56]}
5... exf6 {[%clk 0:04:54.5]} 6. c3 {[%clk 0:04:55.3]} 6... Bd6 {[%clk
0:04:50.9]} 7. Bd3 {[%clk 0:04:55.2]} 7... O-O {[%clk 0:04:49.4]} 8. Qc2 {[%clk
0:04:55.1]} 8... h6 {[%clk 0:04:47.2]} 9. Ne2 {[%clk 0:04:55]} 9... Nd7 {[%clk
0:04:36.5]} 10. O-O {[%clk 0:04:50.8]} 10... c5 {[%clk 0:04:35.3]} 11. Re1
{[%clk 0:04:47.3]} 11... b6 {[%clk 0:04:34.3]} 12. Be4 {[%clk 0:04:45]} 12...
Rb8 {[%clk 0:04:32.9]} 13. Bf4 {[%clk 0:04:43.6]} 13... Qc7 {[%clk 0:04:21.8]}
14. Bg3 {[%clk 0:04:42.2]} 14... Re8 {[%clk 0:04:12.6]} 15. Bd5 {[%clk
0:04:27.3]} 15... Bb7 {[%clk 0:04:05.8]} 16. Bxb7 {[%clk 0:04:23.1]} 16... Rxb7
{[%clk 0:04:05.7]} 17. dxc5 {[%clk 0:04:15.1]} 17... Nxc5 {[%clk 0:04:03.8]} 18.
Nd4 {[%clk 0:04:14.4]} 18... Rxe1+ {[%clk 0:03:27.6]} 19. Rxe1 {[%clk
0:04:12.3]} 19... Qd7 {[%clk 0:03:24.6]} 20. Bxd6 {[%clk 0:04:07.7]} 20... Qxd6
{[%clk 0:03:24.5]} 21. Re8+ {[%clk 0:04:06.7]} 21... Qf8 {[%clk 0:03:18.9]} 22.
Rxf8+ {[%clk 0:04:06.6]} 22... Kxf8 {[%clk 0:03:18.8]} 23. b4 {[%clk 0:04:02.4]}
23... Ne6 {[%clk 0:03:16.1]} 24. Qe4 {[%clk 0:03:59.3]} 24... Re7 {[%clk
0:03:13.8]} 25. Nf5 {[%clk 0:03:58.5]} 25... Ng5 {[%clk 0:03:11.3]} 26. Qxe7+
{[%clk 0:03:57]} 1-0

[Event "Live Chess"]
[Site "Chess.com"]
[Date "2023.05.21"]
[Round "-"]
[White "Tilbs_12"]
[Black "raminguy"]
[Result "0-1"]
[WhiteElo "1558"]
[BlackElo "1942"]
[TimeControl "300"]
[EndTime "0:47:19 PDT"]
[Termination "raminguy won by resignation"]

1. e4 {[%clk 0:04:57.3]} 1... e5 {[%clk 0:04:59.1]} 2. Nf3 {[%clk 0:04:55.8]}
2... Nc6 {[%clk 0:04:58.6]} 3. c3 {[%clk 0:04:55.1]} 3... d5 {[%clk 0:04:56.9]}
4. exd5 {[%clk 0:04:53.4]} 4... Qxd5 {[%clk 0:04:56.8]} 5. Na3 {[%clk
0:04:37.6]} 5... Bxa3 {[%clk 0:04:52.5]} 6. bxa3 {[%clk 0:04:36.1]} 6... Nf6
{[%clk 0:04:46.4]} 7. Qb3 {[%clk 0:04:32.8]} 7... Qd6 {[%clk 0:04:37]} 8. Bc4
{[%clk 0:04:15.7]} 8... O-O {[%clk 0:04:35]} 9. O-O {[%clk 0:04:06]} 9... e4
{[%clk 0:04:30.5]} 10. Ne1 {[%clk 0:04:00.8]} 10... Bd7 {[%clk 0:04:25.3]} 11.
Nc2 {[%clk 0:03:53.3]} 11... Na5 {[%clk 0:04:23.4]} 12. Qb4 {[%clk 0:03:39.2]}
12... Qxb4 {[%clk 0:04:21.8]} 13. Nxb4 {[%clk 0:03:36.2]} 13... Nxc4 {[%clk
0:04:20.7]} 0-1

[Event "Live Chess"]
[Site "Chess.com"]
[Date "2023.05.21"]
[Round "-"]
[White "whitedjohn"]
[Black "matt1979"]
[Result "0-1"]
[WhiteElo "1645"]
[BlackElo "1538"]
[TimeControl "300"]
[EndTime "0:47:33 PDT"]
[Termination "matt1979 won by resignation"]

1. e4 {[%clk 0:04:56.2]} 1... d6 {[%clk 0:04:57.7]} 2. d4 {[%clk 0:04:55.1]}
2... Nf6 {[%clk 0:04:56.4]} 3. Nc3 {[%clk 0:04:54]} 3... e5 {[%clk 0:04:55.2]}
4. dxe5 {[%clk 0:04:52.3]} 4... dxe5 {[%clk 0:04:54.4]} 5. Qxd8+ {[%clk
0:04:50.8]} 5... Kxd8 {[%clk 0:04:54.3]} 6. Bg5 {[%clk 0:04:49.7]} 6... Be6
{[%clk 0:04:46.8]} 7. O-O-O+ {[%clk 0:04:48.8]} 7... Nd7 {[%clk 0:04:39.7]} 8.
Bb5 {[%clk 0:04:42.5]} 8... c6 {[%clk 0:04:37.3]} 9. Ba4 {[%clk 0:04:41]} 9...
b5 {[%clk 0:04:20.7]} 10. Bb3 {[%clk 0:04:39.6]} 10... Bxb3 {[%clk 0:04:19.3]}
11. axb3 {[%clk 0:04:38.7]} 11... Be7 {[%clk 0:04:15.6]} 12. Nf3 {[%clk
0:04:37]} 12... Kc7 {[%clk 0:04:11]} 13. Rd2 {[%clk 0:04:29.8]} 13... h6 {[%clk
0:04:08]} 14. Bh4 {[%clk 0:04:24.5]} 14... Nc5 {[%clk 0:03:59.8]} 15. Nxe5
{[%clk 0:04:13.4]} 15... Ncxe4 {[%clk 0:03:52.1]} 16. Nxe4 {[%clk 0:04:11.9]}
16... Nxe4 {[%clk 0:03:50.7]} 17. Bxe7 {[%clk 0:04:10.6]} 17... Nxd2 {[%clk
0:03:49.5]} 18. Kxd2 {[%clk 0:04:09.3]} 18... Rhe8 {[%clk 0:03:46.7]} 19. Nxc6
{[%clk 0:03:38.7]} 19... Kxc6 {[%clk 0:03:40.5]} 20. Bh4 {[%clk 0:03:37]} 20...
g5 {[%clk 0:03:35.1]} 21. Bg3 {[%clk 0:03:35.9]} 21... f5 {[%clk 0:03:30.7]} 22.
f3 {[%clk 0:03:31]} 22... Rad8+ {[%clk 0:03:28.1]} 23. Kc3 {[%clk 0:03:22.4]}
23... a5 {[%clk 0:03:26]} 24. Bf2 {[%clk 0:03:07.6]} 24... Re2 {[%clk
0:03:22.6]} 25. Rf1 {[%clk 0:03:05.2]} 25... Rdd2 {[%clk 0:03:17.5]} 0-1

[Event "Live Chess"]
[Site "Chess.com"]
[Date "2023.05.21"]
[Round "-"]
[White "Rusty_Bridges"]
[Black "quantum_void"]
[Result "0-1"]
[WhiteElo "1526"]
[BlackElo "1495"]
[TimeControl "300"]
[EndTime "0:47:50 PDT"]
[Termination "quantum_void won on time"]

1. e4 {[%clk 0:04:56.6]} 1... e6 {[%clk 0:04:58.5]} 2. d4 {[%clk 0:04:54.9]}
2... d5 {[%clk 0:04:57.9]} 3. exd5 {[%clk 0:04:53.6]} 3... exd5 {[%clk
0:04:57.1]} 4. Nf3 {[%clk 0:04:52.7]} 4... Bd6 {[%clk 0:04:56.5]} 5. Bd3 {[%clk
0:04:51.4]} 5... Ne7 {[%clk 0:04:55.3]} 6. c3 {[%clk 0:04:50.5]} 6... c6 {[%clk
0:04:52.9]} 7. Bg5 {[%clk 0:04:48.9]} 7... O-O {[%clk 0:04:51]} 8. O-O {[%clk
0:04:47.3]} 8... f6 {[%clk 0:04:50.6]} 9. Bh4 {[%clk 0:04:45.6]} 9... Bf5 {[%clk
0:04:46.2]} 10. Bg3 {[%clk 0:04:27.2]} 10... Bxd3 {[%clk 0:04:43.7]} 11. Qxd3
{[%clk 0:04:25.4]} 11... Bxg3 {[%clk 0:04:41.3]} 12. hxg3 {[%clk 0:04:24.4]}
12... Ng6 {[%clk 0:04:35.9]} 13. Nbd2 {[%clk 0:04:16]} 13... Nd7 {[%clk
0:04:34.8]} 14. Rae1 {[%clk 0:04:14]} 14... Qc7 {[%clk 0:04:27.5]} 15. Re2
{[%clk 0:04:08.6]} 15... Rfe8 {[%clk 0:04:26.1]} 16. Rfe1 {[%clk 0:04:07.4]}
16... Rxe2 {[%clk 0:04:16.3]} 17. Rxe2 {[%clk 0:04:05.7]} 17... Qd6 {[%clk
0:04:04.5]} 18. Nh4 {[%clk 0:04:01.1]} 18... Ndf8 {[%clk 0:03:52.1]} 19. Nf5
{[%clk 0:03:58.4]} 19... Qc7 {[%clk 0:03:42.4]} 20. Nb3 {[%clk 0:03:20.9]} 20...
a5 {[%clk 0:03:39.5]} 21. Nc5 {[%clk 0:03:17.4]} 21... Qb6 {[%clk 0:03:32.3]}
22. Qe3 {[%clk 0:02:53.2]} 22... a4 {[%clk 0:03:22.1]} 23. Ne6 {[%clk
0:02:50.1]} 23... a3 {[%clk 0:03:07.7]} 24. b3 {[%clk 0:02:46.8]} 24... Re8
{[%clk 0:02:52.1]} 25. Nfxg7 {[%clk 0:02:35.9]} 25... Re7 {[%clk 0:02:41.3]} 26.
Nf5 {[%clk 0:02:34]} 26... Rxe6 {[%clk 0:02:39.3]} 27. Qf3 {[%clk 0:02:19.1]}
27... Qd8 {[%clk 0:02:16.7]} 28. Nh6+ {[%clk 0:01:38.5]} 28... Kg7 {[%clk
0:02:09.1]} 29. Nf5+ {[%clk 0:01:36.7]} 29... Kf7 {[%clk 0:02:01.3]} 30. Nh6+
{[%clk 0:01:34.7]} 30... Ke8 {[%clk 0:01:48.1]} 31. Rxe6+ {[%clk 0:00:53]} 31...
Nxe6 {[%clk 0:01:46.4]} 32. Ng8 {[%clk 0:00:46.6]} 32... Kf7 {[%clk 0:01:36.1]}
33. Nh6+ {[%clk 0:00:44.3]} 33... Kg7 {[%clk 0:01:30.1]} 34. Nf5+ {[%clk
0:00:42.7]} 34... Kf8 {[%clk 0:01:26.7]} 35. Qh5 {[%clk 0:00:37.3]} 35... Ng5
{[%clk 0:01:19.9]} 36. Qh6+ {[%clk 0:00:25.5]} 36... Ke8 {[%clk 0:01:16.5]} 37.
Ng7+ {[%clk 0:00:20.3]} 37... Kd7 {[%clk 0:01:14.2]} 38. f4 {[%clk 0:00:10.5]}
38... Ne4 {[%clk 0:01:01.4]} 39. Qxh7 {[%clk 0:00:10.4]} 39... Kc8 {[%clk
0:00:58.7]} 40. Ne6 {[%clk 0:00:07.9]} 40... Qd7 {[%clk 0:00:50.3]} 41. Nf8
{[%clk 0:00:06.5]} 41... Qxh7 {[%clk 0:00:47.9]} 0-1

[Event "Live Chess"]
[Site "Chess.com"]
[Date "2023.05.21"]
[Round "-"]
[White "chessfiction"]
[Black "OSmith06"]
[Result "1-0"]
[WhiteElo "2348"]
[BlackElo "1653"]
[TimeControl "300"]
[EndTime "0:47:55 PDT"]
[Termination "chessfiction won by resignation"]

1. e4 {[%clk 0:04:58.6]} 1... c6 {[%clk 0:04:57.8]} 2. d4 {[%clk 0:04:57.9]}
2... d5 {[%clk 0:04:57.7]} 3. Nc3 {[%clk 0:04:57.1]} 3... dxe4 {[%clk
0:04:56.5]} 4. Nxe4 {[%clk 0:04:56]} 4... Bf5 {[%clk 0:04:56.1]} 5. Ng3 {[%clk
0:04:54]} 5... Bg6 {[%clk 0:04:55.7]} 6. Nf3 {[%clk 0:04:53.3]} 6... h6 {[%clk
0:04:55]} 7. Ne5 {[%clk 0:04:51.9]} 7... Bh7 {[%clk 0:04:54.1]} 8. Qf3 {[%clk
0:04:51]} 8... Nf6 {[%clk 0:04:53]} 9. Bc4 {[%clk 0:04:49.9]} 9... e6 {[%clk
0:04:52.2]} 10. Be3 {[%clk 0:04:47.8]} 10... Nbd7 {[%clk 0:04:51.4]} 11. O-O-O
{[%clk 0:04:45.9]} 11... Bd6 {[%clk 0:04:46]} 12. Kb1 {[%clk 0:04:39.5]} 12...
Qc7 {[%clk 0:04:44.4]} 13. Nh5 {[%clk 0:04:32.4]} 13... Bxe5 {[%clk 0:04:18.1]}
14. Nxg7+ {[%clk 0:04:22.2]} 14... Ke7 {[%clk 0:04:09.6]} 15. dxe5 {[%clk
0:04:19.6]} 15... Nxe5 {[%clk 0:04:05.6]} 16. Bc5+ {[%clk 0:04:18.1]} 1-0

[Event "Live Chess"]
[Site "Chess.com"]
[Date "2023.05.21"]
[Round "-"]
[White "JamesWallman"]
[Black "HoarseyHorsey"]
[Result "0-1"]
[WhiteElo "755"]
[BlackElo "1457"]
[TimeControl "300"]
[EndTime "0:48:02 PDT"]
[Termination "HoarseyHorsey won by checkmate"]

1. e4 {[%clk 0:04:56.6]} 1... c5 {[%clk 0:04:58.9]} 2. c3 {[%clk 0:04:52.2]}
2... e6 {[%clk 0:04:57.5]} 3. d4 {[%clk 0:04:50.1]} 3... d5 {[%clk 0:04:56.8]}
4. e5 {[%clk 0:04:47.8]} 4... Nc6 {[%clk 0:04:55.1]} 5. Nf3 {[%clk 0:04:44.7]}
5... Bd7 {[%clk 0:04:54.3]} 6. Be2 {[%clk 0:04:39.1]} 6... cxd4 {[%clk
0:04:43.2]} 7. cxd4 {[%clk 0:04:36.5]} 7... Nge7 {[%clk 0:04:42.3]} 8. Nc3
{[%clk 0:04:32.6]} 8... a6 {[%clk 0:04:39.6]} 9. a3 {[%clk 0:04:28.4]} 9... Qb6
{[%clk 0:04:38.4]} 10. b4 {[%clk 0:04:18.8]} 10... Nf5 {[%clk 0:04:35.9]} 11.
Be3 {[%clk 0:04:13.1]} 11... Nxe3 {[%clk 0:04:34.3]} 12. fxe3 {[%clk 0:04:09.2]}
12... Be7 {[%clk 0:04:31.6]} 13. O-O {[%clk 0:04:04.5]} 13... O-O {[%clk
0:04:30.5]} 14. h3 {[%clk 0:03:59.9]} 14... Rac8 {[%clk 0:04:22.8]} 15. Rc1
{[%clk 0:03:55.7]} 15... Na7 {[%clk 0:04:20.3]} 16. Nh2 {[%clk 0:03:46.1]} 16...
Nb5 {[%clk 0:04:15.7]} 17. Nxb5 {[%clk 0:03:39.1]} 17... Bxb5 {[%clk 0:04:15.6]}
18. Bxb5 {[%clk 0:03:34.4]} 18... Qxb5 {[%clk 0:04:15.5]} 19. Ng4 {[%clk
0:03:24.9]} 19... Qd7 {[%clk 0:04:02.6]} 20. Qf3 {[%clk 0:03:15.2]} 20... Bg5
{[%clk 0:03:39]} 21. Qg3 {[%clk 0:03:03.7]} 21... Rxc1 {[%clk 0:03:32.9]} 22.
Rxc1 {[%clk 0:02:59.5]} 22... Rc8 {[%clk 0:03:31.9]} 23. Rxc8+ {[%clk
0:02:53.1]} 23... Qxc8 {[%clk 0:03:31.8]} 24. Nf6+ {[%clk 0:02:39.2]} 24... Bxf6
{[%clk 0:03:24.6]} 25. exf6 {[%clk 0:02:36.1]} 25... g6 {[%clk 0:03:15.5]} 26.
Qh4 {[%clk 0:02:27.8]} 26... h5 {[%clk 0:03:08.6]} 27. Qg5 {[%clk 0:02:23.8]}
27... Qd8 {[%clk 0:03:06.4]} 28. h4 {[%clk 0:02:19]} 28... Kf8 {[%clk
0:02:57.4]} 29. Qh6+ {[%clk 0:02:14.2]} 29... Ke8 {[%clk 0:02:56.5]} 30. Qh8+
{[%clk 0:02:08.7]} 30... Kd7 {[%clk 0:02:55.6]} 31. Qg7 {[%clk 0:01:59.2]} 31...
Qe8 {[%clk 0:02:48.8]} 32. Kf2 {[%clk 0:01:48]} 32... Kc6 {[%clk 0:02:47.4]} 33.
Qg8 {[%clk 0:01:35.8]} 33... Qxg8 {[%clk 0:02:45.9]} 34. Kg3 {[%clk 0:01:22.9]}
34... Qd8 {[%clk 0:02:41.9]} 35. Kh3 {[%clk 0:01:17.4]} 35... Qxf6 {[%clk
0:02:40.7]} 36. Kh2 {[%clk 0:01:15.9]} 36... Qxh4+ {[%clk 0:02:38.7]} 37. Kg1
{[%clk 0:01:13.8]} 37... Qe1+ {[%clk 0:02:35.1]} 38. Kh2 {[%clk 0:01:12]} 38...
Qxe3 {[%clk 0:02:34.1]} 39. Kh1 {[%clk 0:01:08.7]} 39... Qxd4 {[%clk 0:02:32.4]}
40. Kh2 {[%clk 0:01:06.8]} 40... Qc3 {[%clk 0:02:30]} 41. Kh1 {[%clk 0:01:04.9]}
41... Qxa3 {[%clk 0:02:27.9]} 42. Kh2 {[%clk 0:01:03.5]} 42... Qxb4 {[%clk
0:02:27]} 43. Kh1 {[%clk 0:01:02.1]} 43... d4 {[%clk 0:02:26.1]} 44. Kh2 {[%clk
0:01:00.8]} 44... d3 {[%clk 0:02:25.6]} 45. Kg1 {[%clk 0:00:59.2]} 45... d2
{[%clk 0:02:24.7]} 46. Kh2 {[%clk 0:00:57.4]} 46... d1=Q {[%clk 0:02:22.3]} 47.
Kh3 {[%clk 0:00:54.8]} 47... Qdg4+ {[%clk 0:02:20]} 48. Kh2 {[%clk 0:00:52.5]}
48... Qh4+ {[%clk 0:02:14.2]} 49. Kg1 {[%clk 0:00:51]} 49... Qbd4+ {[%clk
0:02:12.7]} 50. Kf1 {[%clk 0:00:45.4]} 50... Qhf2# {[%clk 0:02:11.7]} 0-1

[Event "Live Chess"]
[Site "Chess.com"]
[Date "2023.05.21"]
[Round "-"]
[White "f4nomore"]
[Black "MaximKris"]
[Result "0-1"]
[WhiteElo "1398"]
[BlackElo "1824"]
[TimeControl "300"]
[EndTime "0:48:21 PDT"]
[Termination "MaximKris won on time"]

1. b3 {[%clk 0:04:59]} 1... d5 {[%clk 0:04:58.8]} 2. Bb2 {[%clk 0:04:57.9]} 2...
Nf6 {[%clk 0:04:58.4]} 3. e3 {[%clk 0:04:56.9]} 3... Nc6 {[%clk 0:04:57.8]} 4.
Nc3 {[%clk 0:04:55.1]} 4... e5 {[%clk 0:04:57.4]} 5. Nge2 {[%clk 0:04:53.6]}
5... Bc5 {[%clk 0:04:57]} 6. g3 {[%clk 0:04:52.4]} 6... Bf5 {[%clk 0:04:56.6]}
7. Bg2 {[%clk 0:04:51.3]} 7... O-O {[%clk 0:04:55.9]} 8. O-O {[%clk 0:04:50.2]}
8... d4 {[%clk 0:04:55.4]} 9. exd4 {[%clk 0:04:48.5]} 9... exd4 {[%clk
0:04:55.1]} 10. Nb5 {[%clk 0:04:43.8]} 10... Re8 {[%clk 0:04:51.3]} 11. Bxc6
{[%clk 0:04:38.1]} 11... bxc6 {[%clk 0:04:51.2]} 12. Nbxd4 {[%clk 0:04:36.6]}
12... Bg4 {[%clk 0:04:37.9]} 13. f3 {[%clk 0:04:28.6]} 13... Bh3 {[%clk
0:04:35.1]} 14. Re1 {[%clk 0:04:05.3]} 14... Rxe2 {[%clk 0:04:21.3]} 15. Qxe2
{[%clk 0:03:56.9]} 15... Bxd4+ {[%clk 0:04:20.1]} 16. Bxd4 {[%clk 0:03:41.4]}
16... Qxd4+ {[%clk 0:04:18.6]} 17. Qf2 {[%clk 0:03:38.5]} 17... Qd6 {[%clk
0:04:14.9]} 18. d3 {[%clk 0:03:32.7]} 18... Nd5 {[%clk 0:04:05.3]} 19. c4 {[%clk
0:03:25.3]} 19... Nb4 {[%clk 0:03:58.6]} 20. Rad1 {[%clk 0:03:11.5]} 20... Nxd3
{[%clk 0:03:48.8]} 21. Qe3 {[%clk 0:03:06.7]} 21... Nxe1 {[%clk 0:03:21.8]} 22.
Rxd6 {[%clk 0:03:01.7]} 22... cxd6 {[%clk 0:03:15.5]} 23. Qxe1 {[%clk 0:02:59]}
23... d5 {[%clk 0:03:07.1]} 24. cxd5 {[%clk 0:02:54.9]} 24... cxd5 {[%clk
0:03:05.4]} 25. Qd2 {[%clk 0:02:53.1]} 25... Rd8 {[%clk 0:03:03.3]} 26. g4
{[%clk 0:02:49]} 26... d4 {[%clk 0:02:56.2]} 27. Kf2 {[%clk 0:02:47.7]} 27... f5
{[%clk 0:02:52]} 28. Kg3 {[%clk 0:02:44.8]} 28... fxg4 {[%clk 0:02:48.1]} 29.
fxg4 {[%clk 0:02:42.1]} 29... Bf1 {[%clk 0:02:47.6]} 30. Qa5 {[%clk 0:02:24.5]}
30... Rd7 {[%clk 0:02:18]} 31. Qa4 {[%clk 0:02:16.2]} 31... Rd8 {[%clk
0:02:02.5]} 32. Qxa7 {[%clk 0:02:00.1]} 32... d3 {[%clk 0:01:56.2]} 33. Qc7
{[%clk 0:01:56.9]} 33... Rf8 {[%clk 0:01:51.9]} 34. Qc4+ {[%clk 0:01:47.8]}
34... Kh8 {[%clk 0:01:46.2]} 35. Qc5 {[%clk 0:01:40.8]} 35... Rg8 {[%clk
0:01:33.7]} 36. Qd4 {[%clk 0:01:38.8]} 36... Be2 {[%clk 0:01:28.9]} 37. Kf2
{[%clk 0:01:35]} 37... Rf8+ {[%clk 0:01:24.2]} 38. Ke3 {[%clk 0:01:31]} 38... h6
{[%clk 0:01:22.9]} 39. Kd2 {[%clk 0:01:27.1]} 39... Rc8 {[%clk 0:01:19]} 40. Ke3
{[%clk 0:00:54.4]} 40... Rc2 {[%clk 0:01:08.1]} 41. a4 {[%clk 0:00:43.9]} 41...
Bf1 {[%clk 0:00:53.7]} 42. a5 {[%clk 0:00:31.8]} 42... d2 {[%clk 0:00:39.5]} 43.
Qxd2 {[%clk 0:00:29.8]} 43... Rxd2 {[%clk 0:00:38.6]} 44. Kxd2 {[%clk
0:00:27.7]} 44... Kg8 {[%clk 0:00:37.4]} 45. Kc3 {[%clk 0:00:26.3]} 45... Kf7
{[%clk 0:00:36.3]} 46. Kd4 {[%clk 0:00:24.9]} 46... Ke6 {[%clk 0:00:34.7]} 47.
h4 {[%clk 0:00:22.1]} 47... Kd6 {[%clk 0:00:29.3]} 48. b4 {[%clk 0:00:16.5]}
48... Bb5 {[%clk 0:00:22]} 49. Ke4 {[%clk 0:00:13.7]} 49... Ke6 {[%clk
0:00:19.2]} 50. Kf4 {[%clk 0:00:12.4]} 50... Kf6 {[%clk 0:00:16.8]} 51. g5+
{[%clk 0:00:10.4]} 51... hxg5+ {[%clk 0:00:15.4]} 52. hxg5+ {[%clk 0:00:08.7]}
52... Kg6 {[%clk 0:00:15]} 53. Ke5 {[%clk 0:00:04.6]} 53... Kxg5 {[%clk
0:00:13.5]} 54. Kd6 {[%clk 0:00:03.8]} 54... Kf6 {[%clk 0:00:12.7]} 55. Kc5
{[%clk 0:00:03.4]} 55... Bf1 {[%clk 0:00:11.9]} 56. Kb6 {[%clk 0:00:01.3]} 56...
g5 {[%clk 0:00:10.6]} 0-1